[Event "Early-Titled-Tuesday-Blitz-July-09-2024"]
[Site "Chess.com"]
[Date "2024.07.09"]
[Round "9"]
[White "FMalexhdez"]
[Black "vikber19611"]
[Result "1-0"]
[WhiteElo "2277"]
[BlackElo "1750"]
[TimeControl "180+1"]
[EndTime "9:44:57 PDT"]
[Termination "FMalexhdez won on time"]

1. e4 {[%clk 0:02:56.1]} 1... e5 {[%clk 0:02:59.1]} 2. Nf3 {[%clk 0:02:55.7]}
2... Nc6 {[%clk 0:02:59.1]} 3. Bc4 {[%clk 0:02:55.8]} 3... Nf6 {[%clk
0:02:58.1]} 4. d3 {[%clk 0:02:56]} 4... Bc5 {[%clk 0:02:56.7]} 5. c3 {[%clk
0:02:55.4]} 5... d6 {[%clk 0:02:53.7]} 6. a4 {[%clk 0:02:53.6]} 6... a5 {[%clk
0:02:47.6]} 7. Nbd2 {[%clk 0:02:52.1]} 7... O-O {[%clk 0:02:44.6]} 8. O-O {[%clk
0:02:49.8]} 8... Be6 {[%clk 0:02:37.9]} 9. h3 {[%clk 0:02:47.4]} 9... d5 {[%clk
0:02:17.9]} 10. Bb5 {[%clk 0:02:43.1]} 10... Bd6 {[%clk 0:01:58.9]} 11. Re1
{[%clk 0:02:40.7]} 11... dxe4 {[%clk 0:01:23.1]} 12. Nxe4 {[%clk 0:02:38.9]}
12... Nd5 {[%clk 0:01:15.9]} 13. Nxd6 {[%clk 0:02:31.9]} 13... Qxd6 {[%clk
0:01:14.2]} 14. d4 {[%clk 0:02:32]} 14... exd4 {[%clk 0:01:10.1]} 15. Bxc6
{[%clk 0:02:29.4]} 15... Qxc6 {[%clk 0:01:02.7]} 16. Nxd4 {[%clk 0:02:29.3]}
16... Qd7 {[%clk 0:00:59.2]} 17. Nxe6 {[%clk 0:02:26.6]} 17... fxe6 {[%clk
0:00:58.6]} 18. Be3 {[%clk 0:02:26.2]} 18... Rad8 {[%clk 0:00:53.5]} 19. Qg4
{[%clk 0:02:11.6]} 19... Nxe3 {[%clk 0:00:41.2]} 20. Rxe3 {[%clk 0:02:10.3]}
20... Rf5 {[%clk 0:00:33.9]} 21. Rae1 {[%clk 0:02:05.3]} 21... Re8 {[%clk
0:00:21.9]} 22. Qxf5 {[%clk 0:01:58.5]} 22... exf5 {[%clk 0:00:20.7]} 23. Rxe8+
{[%clk 0:01:59]} 23... Kf7 {[%clk 0:00:20.6]} 24. R8e5 {[%clk 0:01:56]} 24... b6
{[%clk 0:00:16.7]} 25. g3 {[%clk 0:01:55.2]} 25... g6 {[%clk 0:00:15.7]} 26. h4
{[%clk 0:01:54.7]} 26... Kf6 {[%clk 0:00:12.6]} 27. R1e2 {[%clk 0:01:50.6]}
27... Qxa4 {[%clk 0:00:07.4]} 28. Re7 {[%clk 0:01:48]} 28... Qc6 {[%clk
0:00:05.3]} 29. Rxh7 {[%clk 0:01:43.8]} 29... b5 {[%clk 0:00:04.2]} 30. Ree7
{[%clk 0:01:34.1]} 30... Qd5 {[%clk 0:00:02.6]} 31. Rxc7 {[%clk 0:01:30.7]}
31... Qd1+ {[%clk 0:00:02.4]} 32. Kh2 {[%clk 0:01:25.5]} 32... Qf3 {[%clk
0:00:02.1]} 33. Rhf7+ {[%clk 0:01:22.5]} 33... Ke6 {[%clk 0:00:01.4]} 34. Rfe7+
{[%clk 0:01:17.4]} 34... Kd6 {[%clk 0:00:01.6]} 35. Kg1 {[%clk 0:01:13]} 35...
Qd1+ {[%clk 0:00:01]} 36. Kg2 {[%clk 0:01:13.2]} 36... Qd5+ {[%clk 0:00:01]} 37.
Kh2 {[%clk 0:01:07.1]} 37... Qf3 {[%clk 0:00:01]} 38. Rcd7+ {[%clk 0:01:03]} 1-0

[Event "Early-Titled-Tuesday-Blitz-July-09-2024"]
[Site "Chess.com"]
[Date "2024.07.09"]
[Round "9"]
[White "Mikhail_Golubev"]
[Black "Balla_Tamas"]
[Result "0-1"]
[WhiteElo "2619"]
[BlackElo "2495"]
[TimeControl "180+1"]
[EndTime "9:44:59 PDT"]
[Termination "Balla_Tamas won on time"]

1. e4 {[%clk 0:03:00.9]} 1... c5 {[%clk 0:03:00]} 2. Nf3 {[%clk 0:03:00.1]} 2...
Nc6 {[%clk 0:03:00]} 3. Nc3 {[%clk 0:02:58.7]} 3... g6 {[%clk 0:02:59.4]} 4. d4
{[%clk 0:02:58.4]} 4... cxd4 {[%clk 0:02:58.9]} 5. Nxd4 {[%clk 0:02:59]} 5...
Bg7 {[%clk 0:02:59.1]} 6. Be3 {[%clk 0:02:58.6]} 6... Nf6 {[%clk 0:02:55.3]} 7.
Bc4 {[%clk 0:02:57.8]} 7... O-O {[%clk 0:02:54.1]} 8. Bb3 {[%clk 0:02:57.6]}
8... d6 {[%clk 0:02:48.6]} 9. f3 {[%clk 0:02:56]} 9... Bd7 {[%clk 0:02:46.8]}
10. h4 {[%clk 0:02:54.3]} 10... Nxd4 {[%clk 0:02:42.5]} 11. Bxd4 {[%clk
0:02:51.9]} 11... h5 {[%clk 0:02:35.8]} 12. Qd2 {[%clk 0:02:45.2]} 12... b5
{[%clk 0:02:27.6]} 13. g4 {[%clk 0:02:45]} 13... a5 {[%clk 0:02:00.3]} 14. Bxf6
{[%clk 0:01:46.9]} 14... Bxf6 {[%clk 0:01:43.4]} 15. gxh5 {[%clk 0:01:46.5]}
15... a4 {[%clk 0:01:33.4]} 16. Bd5 {[%clk 0:01:43.6]} 16... b4 {[%clk
0:01:33.3]} 17. Ne2 {[%clk 0:01:32.8]} 17... Bxb2 {[%clk 0:01:02.7]} 18. hxg6
{[%clk 0:01:09.1]} 18... e6 {[%clk 0:00:55.5]} 19. Qh6 {[%clk 0:01:00.7]} 19...
fxg6 {[%clk 0:00:51.3]} 20. Qxg6+ {[%clk 0:00:57.1]} 20... Kh8 {[%clk
0:00:51.7]} 21. Qh6+ {[%clk 0:00:43.7]} 21... Kg8 {[%clk 0:00:45.4]} 22. Rb1
{[%clk 0:00:07.6]} 22... Bg7 {[%clk 0:00:43.2]} 23. Bxe6+ {[%clk 0:00:06]} 23...
Bxe6 {[%clk 0:00:43.2]} 24. Qxe6+ {[%clk 0:00:05.7]} 24... Kh8 {[%clk
0:00:43.8]} 25. Qg4 {[%clk 0:00:02]} 25... Qe8 {[%clk 0:00:30.9]} 26. Rg1 {[%clk
0:00:01.7]} 26... b3 {[%clk 0:00:31.8]} 0-1

[Event "Early-Titled-Tuesday-Blitz-July-09-2024"]
[Site "Chess.com"]
[Date "2024.07.09"]
[Round "9"]
[White "BaylavChess"]
[Black "pinguino120"]
[Result "0-1"]
[WhiteElo "2408"]
[BlackElo "2322"]
[TimeControl "180+1"]
[EndTime "9:45:00 PDT"]
[Termination "pinguino120 won on time"]

1. e4 {[%clk 0:03:00.9]} 1... c6 {[%clk 0:02:59.9]} 2. d4 {[%clk 0:02:56.7]}
2... d5 {[%clk 0:03:00.1]} 3. Nc3 {[%clk 0:02:55]} 3... dxe4 {[%clk 0:02:59.8]}
4. Nxe4 {[%clk 0:02:51.1]} 4... Nf6 {[%clk 0:03:00]} 5. Nxf6+ {[%clk 0:02:48.8]}
5... exf6 {[%clk 0:03:00.9]} 6. c3 {[%clk 0:02:46.3]} 6... Bd6 {[%clk
0:03:00.7]} 7. Bd3 {[%clk 0:02:45.3]} 7... O-O {[%clk 0:03:00.5]} 8. Qc2 {[%clk
0:02:37.4]} 8... Re8+ {[%clk 0:02:59.7]} 9. Ne2 {[%clk 0:02:34.5]} 9... h5
{[%clk 0:02:59.6]} 10. O-O {[%clk 0:02:33.2]} 10... Nd7 {[%clk 0:02:59.2]} 11.
Be3 {[%clk 0:02:29.9]} 11... Nf8 {[%clk 0:02:57.8]} 12. c4 {[%clk 0:02:29.6]}
12... h4 {[%clk 0:02:56.6]} 13. h3 {[%clk 0:02:29.6]} 13... Ne6 {[%clk
0:02:53.5]} 14. Rad1 {[%clk 0:02:26.2]} 14... Bb8 {[%clk 0:02:51.8]} 15. Bf5
{[%clk 0:02:16.9]} 15... Qa5 {[%clk 0:02:31.7]} 16. a3 {[%clk 0:02:11.4]} 16...
Ng5 {[%clk 0:02:24]} 17. Bxc8 {[%clk 0:02:08.8]} 17... Rxc8 {[%clk 0:02:24.9]}
18. Bd2 {[%clk 0:01:56.9]} 18... Qb6 {[%clk 0:02:17.7]} 19. c5 {[%clk
0:01:40.8]} 19... Qc7 {[%clk 0:02:14.8]} 20. Bf4 {[%clk 0:01:40.5]} 20... Qd7
{[%clk 0:02:15.2]} 21. Qd2 {[%clk 0:01:27.6]} 21... Ne6 {[%clk 0:01:56.7]} 22.
Bxb8 {[%clk 0:01:27.6]} 22... Raxb8 {[%clk 0:01:57.6]} 23. Qe3 {[%clk
0:01:27.8]} 23... Re8 {[%clk 0:01:57]} 24. Qf3 {[%clk 0:01:27.2]} 24... Ng5
{[%clk 0:01:53.6]} 25. Qf4 {[%clk 0:01:25.8]} 25... Rxe2 {[%clk 0:01:52.8]} 26.
Qxb8+ {[%clk 0:01:25]} 26... Kh7 {[%clk 0:01:51.7]} 27. Rfe1 {[%clk 0:01:21]}
27... Rxe1+ {[%clk 0:01:48.4]} 28. Rxe1 {[%clk 0:01:21.6]} 28... Qxd4 {[%clk
0:01:48.5]} 29. Qd6 {[%clk 0:01:07.2]} 29... Qxb2 {[%clk 0:01:42.9]} 30. Qd3+
{[%clk 0:01:07.4]} 30... g6 {[%clk 0:01:39.1]} 31. f4 {[%clk 0:01:07.3]} 31...
Ne6 {[%clk 0:01:33.3]} 32. f5 {[%clk 0:01:07.9]} 32... Nf4 {[%clk 0:01:27.2]}
33. fxg6+ {[%clk 0:01:06.9]} 33... fxg6 {[%clk 0:01:28.1]} 34. Qf3 {[%clk
0:00:54.3]} 34... Qd4+ {[%clk 0:01:25.5]} 35. Kh2 {[%clk 0:00:52.1]} 35... g5
{[%clk 0:01:18.2]} 36. Re7+ {[%clk 0:00:47.1]} 36... Kg6 {[%clk 0:01:18.2]} 37.
Rxb7 {[%clk 0:00:36.5]} 37... Qe5 {[%clk 0:01:12.1]} 38. Rb1 {[%clk 0:00:13.1]}
38... Qxc5 {[%clk 0:01:08.8]} 0-1

[Event "Early-Titled-Tuesday-Blitz-July-09-2024"]
[Site "Chess.com"]
[Date "2024.07.09"]
[Round "9"]
[White "RTchess367"]
[Black "TioCridineno"]
[Result "0-1"]
[WhiteElo "2296"]
[BlackElo "2432"]
[TimeControl "180+1"]
[EndTime "9:45:01 PDT"]
[Termination "TioCridineno won on time"]

1. e4 {[%clk 0:03:00.9]} 1... c5 {[%clk 0:02:59.9]} 2. Nf3 {[%clk 0:03:00]} 2...
Nc6 {[%clk 0:03:00]} 3. Bb5 {[%clk 0:02:58.6]} 3... Nf6 {[%clk 0:02:59.7]} 4.
Nc3 {[%clk 0:02:56.8]} 4... g6 {[%clk 0:02:59.5]} 5. O-O {[%clk 0:02:55.8]} 5...
Bg7 {[%clk 0:02:59.4]} 6. Re1 {[%clk 0:02:52.4]} 6... Nd4 {[%clk 0:02:59.6]} 7.
Nxd4 {[%clk 0:02:46.6]} 7... cxd4 {[%clk 0:02:59.1]} 8. Nb1 {[%clk 0:02:47.2]}
8... O-O {[%clk 0:02:57.7]} 9. d3 {[%clk 0:02:46.7]} 9... e6 {[%clk 0:02:50.4]}
10. Bf4 {[%clk 0:02:37.4]} 10... Qb6 {[%clk 0:02:49.7]} 11. Ba4 {[%clk
0:02:26.4]} 11... d5 {[%clk 0:02:41.2]} 12. Bb3 {[%clk 0:02:16.9]} 12... a5
{[%clk 0:02:23.3]} 13. a4 {[%clk 0:02:11.1]} 13... Bd7 {[%clk 0:02:13]} 14. Nd2
{[%clk 0:02:02.9]} 14... Bc6 {[%clk 0:02:10.7]} 15. Qe2 {[%clk 0:01:23.6]} 15...
Rad8 {[%clk 0:02:05.5]} 16. Be5 {[%clk 0:01:13.9]} 16... dxe4 {[%clk 0:01:54.3]}
17. dxe4 {[%clk 0:01:12.6]} 17... Qc5 {[%clk 0:01:46.3]} 18. Bxf6 {[%clk
0:00:46.2]} 18... Bxf6 {[%clk 0:01:45.7]} 19. Nc4 {[%clk 0:00:37.8]} 19... e5
{[%clk 0:01:36.2]} 20. Rad1 {[%clk 0:00:33.4]} 20... b6 {[%clk 0:01:34.5]} 21.
Kh1 {[%clk 0:00:31.5]} 21... Rc8 {[%clk 0:01:21.2]} 22. Qd3 {[%clk 0:00:22.3]}
22... Bxa4 {[%clk 0:01:16.9]} 23. Nxe5 {[%clk 0:00:13.2]} 23... Bb5 {[%clk
0:01:05.8]} 24. c4 {[%clk 0:00:06.1]} 24... dxc3 {[%clk 0:01:04.4]} 25. Nd7
{[%clk 0:00:06.3]} 25... Bxd3 {[%clk 0:00:56.7]} 26. Nxc5 {[%clk 0:00:06.1]}
26... Rxc5 {[%clk 0:00:56.7]} 27. Rxd3 {[%clk 0:00:07]} 27... cxb2 {[%clk
0:00:57.1]} 28. Rd5 {[%clk 0:00:04.8]} 28... Rxd5 {[%clk 0:00:52]} 29. Bxd5
{[%clk 0:00:05.7]} 29... Bc3 {[%clk 0:00:50.8]} 30. Rb1 {[%clk 0:00:05]} 30...
b5 {[%clk 0:00:51]} 31. f4 {[%clk 0:00:03.6]} 31... a4 {[%clk 0:00:47.5]} 32.
Kg1 {[%clk 0:00:02.2]} 32... b4 {[%clk 0:00:47.7]} 0-1

[Event "Early-Titled-Tuesday-Blitz-July-09-2024"]
[Site "Chess.com"]
[Date "2024.07.09"]
[Round "9"]
[White "krzyzan94"]
[Black "annasargsyan_m"]
[Result "0-1"]
[WhiteElo "2767"]
[BlackElo "2672"]
[TimeControl "180+1"]
[EndTime "9:45:03 PDT"]
[Termination "annasargsyan_m won by checkmate"]

1. Nf3 {[%clk 0:02:59.3]} 1... d5 {[%clk 0:02:59.9]} 2. g3 {[%clk 0:02:59.2]}
2... Nf6 {[%clk 0:03:00.4]} 3. Bg2 {[%clk 0:02:59.4]} 3... g6 {[%clk 0:03:01.1]}
4. O-O {[%clk 0:02:59.9]} 4... Bg7 {[%clk 0:03:01.8]} 5. c4 {[%clk 0:02:59.7]}
5... c6 {[%clk 0:03:01.3]} 6. a4 {[%clk 0:02:54.2]} 6... O-O {[%clk 0:03:01.7]}
7. a5 {[%clk 0:02:50.9]} 7... dxc4 {[%clk 0:03:01.4]} 8. Qc2 {[%clk 0:02:47.2]}
8... Be6 {[%clk 0:03:01.1]} 9. Ng5 {[%clk 0:02:45.6]} 9... Bf5 {[%clk
0:02:55.6]} 10. Qxc4 {[%clk 0:02:43.4]} 10... h6 {[%clk 0:02:54.2]} 11. e4
{[%clk 0:02:34.2]} 11... hxg5 {[%clk 0:02:42.2]} 12. exf5 {[%clk 0:02:34.2]}
12... gxf5 {[%clk 0:02:43.1]} 13. d3 {[%clk 0:02:32.2]} 13... g4 {[%clk
0:02:39.6]} 14. Nc3 {[%clk 0:02:28.3]} 14... a6 {[%clk 0:02:35.7]} 15. Qf4
{[%clk 0:02:21.9]} 15... e6 {[%clk 0:02:35.3]} 16. Qb4 {[%clk 0:02:07.7]} 16...
Qc8 {[%clk 0:02:20.8]} 17. Bg5 {[%clk 0:02:05]} 17... Nd5 {[%clk 0:02:18.7]} 18.
Qb3 {[%clk 0:01:44]} 18... Nd7 {[%clk 0:02:14.5]} 19. Nxd5 {[%clk 0:01:38.6]}
19... exd5 {[%clk 0:02:06]} 20. Qb4 {[%clk 0:01:35]} 20... Ne5 {[%clk
0:02:04.4]} 21. Rad1 {[%clk 0:01:28.8]} 21... d4 {[%clk 0:01:53.4]} 22. Rfe1
{[%clk 0:01:22.4]} 22... Qd7 {[%clk 0:01:52.4]} 23. Qd2 {[%clk 0:01:01.1]} 23...
Rfe8 {[%clk 0:01:50.5]} 24. Bh6 {[%clk 0:01:01.6]} 24... Ng6 {[%clk 0:01:46.7]}
25. Bxg7 {[%clk 0:01:01]} 25... Kxg7 {[%clk 0:01:47.6]} 26. Qb4 {[%clk
0:00:58.2]} 26... f4 {[%clk 0:01:27.3]} 27. Be4 {[%clk 0:00:50.6]} 27... f5
{[%clk 0:01:25.2]} 28. Bg2 {[%clk 0:00:47.4]} 28... f3 {[%clk 0:01:16.3]} 29.
Bf1 {[%clk 0:00:47.7]} 29... Kf6 {[%clk 0:01:07.9]} 30. h3 {[%clk 0:00:43.4]}
30... gxh3 {[%clk 0:01:04.4]} 31. Kh2 {[%clk 0:00:37.6]} 31... Ne5 {[%clk
0:01:01.9]} 32. Rxe5 {[%clk 0:00:36]} 32... Rxe5 {[%clk 0:01:00.9]} 33. Qd2
{[%clk 0:00:36.9]} 33... Kg6 {[%clk 0:00:53.1]} 34. Qf4 {[%clk 0:00:36.6]} 34...
Rae8 {[%clk 0:00:52.2]} 35. Qxf3 {[%clk 0:00:33.2]} 35... Qd5 {[%clk 0:00:50.4]}
36. Qf4 {[%clk 0:00:05.9]} 36... Re1 {[%clk 0:00:50.3]} 37. Qc1 {[%clk
0:00:03.7]} 37... Rxf1 {[%clk 0:00:49]} 38. Rxf1 {[%clk 0:00:03.7]} 38... Qg2#
{[%clk 0:00:48.9]} 0-1

[Event "Early-Titled-Tuesday-Blitz-July-09-2024"]
[Site "Chess.com"]
[Date "2024.07.09"]
[Round "9"]
[White "dey2580"]
[Black "neistoviupryam"]
[Result "1-0"]
[WhiteElo "2466"]
[BlackElo "2337"]
[TimeControl "180+1"]
[EndTime "9:45:04 PDT"]
[Termination "dey2580 won by checkmate"]

1. Nf3 {[%clk 0:02:57.5]} 1... d5 {[%clk 0:02:59.5]} 2. g3 {[%clk 0:02:57.2]}
2... e6 {[%clk 0:02:59.7]} 3. Bg2 {[%clk 0:02:57.8]} 3... f5 {[%clk 0:02:59.8]}
4. O-O {[%clk 0:02:58.5]} 4... Nf6 {[%clk 0:02:59.9]} 5. d3 {[%clk 0:02:58.2]}
5... Bc5 {[%clk 0:02:59.5]} 6. a3 {[%clk 0:02:57]} 6... c6 {[%clk 0:02:59.6]} 7.
b4 {[%clk 0:02:56.6]} 7... Bb6 {[%clk 0:02:59.5]} 8. c4 {[%clk 0:02:56.6]} 8...
Nbd7 {[%clk 0:02:59.1]} 9. c5 {[%clk 0:02:56.5]} 9... Bc7 {[%clk 0:02:58.6]} 10.
Nbd2 {[%clk 0:02:55.2]} 10... e5 {[%clk 0:02:55.8]} 11. e4 {[%clk 0:02:55]}
11... fxe4 {[%clk 0:02:46.3]} 12. dxe4 {[%clk 0:02:55.1]} 12... O-O {[%clk
0:02:41.5]} 13. Ng5 {[%clk 0:02:43.7]} 13... Qe8 {[%clk 0:02:41.1]} 14. exd5
{[%clk 0:02:41.2]} 14... cxd5 {[%clk 0:02:38.3]} 15. Qb3 {[%clk 0:02:41.3]}
15... e4 {[%clk 0:02:35.8]} 16. Ndxe4 {[%clk 0:02:33.9]} 16... Kh8 {[%clk
0:02:35.2]} 17. Nd6 {[%clk 0:02:31.3]} 17... Bxd6 {[%clk 0:02:34.2]} 18. cxd6
{[%clk 0:02:32.2]} 18... Nb6 {[%clk 0:02:28.2]} 19. Bb2 {[%clk 0:02:13.5]} 19...
h6 {[%clk 0:02:25.1]} 20. Rae1 {[%clk 0:02:12.6]} 20... Qh5 {[%clk 0:02:23.3]}
21. Ne6 {[%clk 0:02:11.6]} 21... Bxe6 {[%clk 0:02:10.3]} 22. Rxe6 {[%clk
0:02:12.5]} 22... Ng4 {[%clk 0:01:52.1]} 23. h3 {[%clk 0:02:06.6]} 23... Nf6
{[%clk 0:01:50.9]} 24. Bxf6 {[%clk 0:02:03.8]} 24... Rxf6 {[%clk 0:01:47.8]} 25.
Rxf6 {[%clk 0:02:03.4]} 25... gxf6 {[%clk 0:01:47.7]} 26. Re1 {[%clk 0:01:57.1]}
26... Rd8 {[%clk 0:01:43.4]} 27. Re6 {[%clk 0:01:35.3]} 27... Qf5 {[%clk
0:01:42.6]} 28. Qe3 {[%clk 0:01:35.3]} 28... Kg7 {[%clk 0:01:10.2]} 29. g4
{[%clk 0:01:13.8]} 29... Qg6 {[%clk 0:00:50.2]} 30. Re7+ {[%clk 0:00:46.3]}
30... Kf8 {[%clk 0:00:45.2]} 31. Qe6 {[%clk 0:00:44.4]} 31... Nc8 {[%clk
0:00:32.4]} 32. Bxd5 {[%clk 0:00:30.5]} 32... Rxd6 {[%clk 0:00:20.7]} 33. Rf7+
{[%clk 0:00:27.4]} 33... Kg8 {[%clk 0:00:19.1]} 34. Qe8# {[%clk 0:00:27.4]} 1-0

[Event "Early-Titled-Tuesday-Blitz-July-09-2024"]
[Site "Chess.com"]
[Date "2024.07.09"]
[Round "9"]
[White "MdChess1734"]
[Black "HypeMan111"]
[Result "1-0"]
[WhiteElo "2419"]
[BlackElo "2288"]
[TimeControl "180+1"]
[EndTime "9:45:07 PDT"]
[Termination "MdChess1734 won by resignation"]

1. e4 {[%clk 0:02:52.3]} 1... c5 {[%clk 0:02:58.3]} 2. Nf3 {[%clk 0:02:52.6]}
2... d6 {[%clk 0:02:58]} 3. d4 {[%clk 0:02:53]} 3... cxd4 {[%clk 0:02:58.9]} 4.
Nxd4 {[%clk 0:02:53.4]} 4... Nf6 {[%clk 0:02:59.8]} 5. Nc3 {[%clk 0:02:53.8]}
5... a6 {[%clk 0:02:59.7]} 6. Bg5 {[%clk 0:02:54.2]} 6... e6 {[%clk 0:02:59.8]}
7. f4 {[%clk 0:02:54.4]} 7... Be7 {[%clk 0:03:00.4]} 8. Qf3 {[%clk 0:02:54.6]}
8... Qc7 {[%clk 0:03:00.2]} 9. O-O-O {[%clk 0:02:54.5]} 9... Nbd7 {[%clk
0:03:00.8]} 10. g4 {[%clk 0:02:54.6]} 10... h6 {[%clk 0:03:00.9]} 11. Bxf6
{[%clk 0:02:43.2]} 11... Bxf6 {[%clk 0:03:00.4]} 12. h4 {[%clk 0:02:42.8]} 12...
Nb6 {[%clk 0:02:59.7]} 13. g5 {[%clk 0:02:38.4]} 13... Bxd4 {[%clk 0:02:59.4]}
14. Rxd4 {[%clk 0:02:37.6]} 14... Qc5 {[%clk 0:03:00.3]} 15. Qd1 {[%clk
0:01:54.3]} 15... Ke7 {[%clk 0:02:25.6]} 16. g6 {[%clk 0:01:45.7]} 16... fxg6
{[%clk 0:02:07.6]} 17. e5 {[%clk 0:01:26.9]} 17... dxe5 {[%clk 0:01:44.9]} 18.
fxe5 {[%clk 0:01:26]} 18... Bd7 {[%clk 0:01:28.7]} 19. Rg1 {[%clk 0:01:20.9]}
19... Be8 {[%clk 0:01:14.2]} 20. Bh3 {[%clk 0:01:16]} 20... Bf7 {[%clk
0:01:09.4]} 21. Rf1 {[%clk 0:00:32.8]} 21... Rad8 {[%clk 0:01:05]} 22. Rxd8
{[%clk 0:00:26]} 22... Rxd8 {[%clk 0:01:02.5]} 23. Qf3 {[%clk 0:00:22]} 23...
Bg8 {[%clk 0:00:41.9]} 24. Qxb7+ {[%clk 0:00:20.6]} 24... Rd7 {[%clk 0:00:42.1]}
25. Qf3 {[%clk 0:00:17.6]} 25... Rd8 {[%clk 0:00:39.1]} 26. Ne4 {[%clk
0:00:17.7]} 26... Qd4 {[%clk 0:00:34.3]} 27. Qa3+ {[%clk 0:00:17.1]} 27... Kd7
{[%clk 0:00:16.8]} 28. Rd1 {[%clk 0:00:17.1]} 1-0

[Event "Early-Titled-Tuesday-Blitz-July-09-2024"]
[Site "Chess.com"]
[Date "2024.07.09"]
[Round "9"]
[White "Sofia_Blokhin"]
[Black "JuliaEfremova"]
[Result "1-0"]
[WhiteElo "2200"]
[BlackElo "2281"]
[TimeControl "180+1"]
[EndTime "9:45:09 PDT"]
[Termination "Sofia_Blokhin won by resignation"]

1. d4 {[%clk 0:02:57.9]} 1... e5 {[%clk 0:02:59]} 2. dxe5 {[%clk 0:02:57.3]}
2... d6 {[%clk 0:02:55.7]} 3. exd6 {[%clk 0:02:56.7]} 3... Bxd6 {[%clk
0:02:54.9]} 4. Nc3 {[%clk 0:02:53.2]} 4... Nc6 {[%clk 0:02:53.1]} 5. e4 {[%clk
0:02:51]} 5... Qe7 {[%clk 0:02:52.2]} 6. Be3 {[%clk 0:02:48.3]} 6... Nf6 {[%clk
0:02:43]} 7. f3 {[%clk 0:02:45.1]} 7... Be6 {[%clk 0:02:38.5]} 8. Bb5 {[%clk
0:02:40.4]} 8... a6 {[%clk 0:02:34]} 9. Bxc6+ {[%clk 0:02:39.5]} 9... bxc6
{[%clk 0:02:34.9]} 10. Qe2 {[%clk 0:02:33.1]} 10... Bb4 {[%clk 0:02:30.2]} 11.
Bd2 {[%clk 0:02:22.3]} 11... Qc5 {[%clk 0:02:22.3]} 12. a3 {[%clk 0:02:16.2]}
12... Bxc3 {[%clk 0:02:22]} 13. Bxc3 {[%clk 0:02:15.7]} 13... Bc4 {[%clk
0:02:19.5]} 14. Qf2 {[%clk 0:02:15.4]} 14... Qe7 {[%clk 0:02:14.1]} 15. Ne2
{[%clk 0:02:09.1]} 15... Bxe2 {[%clk 0:02:10.6]} 16. Qxe2 {[%clk 0:02:08.8]}
16... O-O {[%clk 0:02:05.5]} 17. O-O {[%clk 0:02:07.1]} 17... Nd7 {[%clk
0:01:59.5]} 18. Bb4 {[%clk 0:02:03]} 18... c5 {[%clk 0:01:59.2]} 19. Bc3 {[%clk
0:02:03]} 19... f5 {[%clk 0:01:48.7]} 20. Qc4+ {[%clk 0:02:00.7]} 20... Kh8
{[%clk 0:01:48.2]} 21. exf5 {[%clk 0:01:57.8]} 21... Rxf5 {[%clk 0:01:45.2]} 22.
Rfe1 {[%clk 0:01:56.6]} 22... Qf8 {[%clk 0:01:38.1]} 23. Qe6 {[%clk 0:01:41.8]}
23... Nb6 {[%clk 0:01:31.6]} 24. Rad1 {[%clk 0:01:34.2]} 24... Rf7 {[%clk
0:01:25.1]} 25. Re2 {[%clk 0:01:27.1]} 25... Na4 {[%clk 0:01:10.7]} 26. Be5
{[%clk 0:01:09.3]} 26... Re7 {[%clk 0:00:57.1]} 27. Qc4 {[%clk 0:01:04]} 27...
Nb6 {[%clk 0:00:54.7]} 28. Qxc5 {[%clk 0:00:59]} 28... Rae8 {[%clk 0:00:55.2]}
29. f4 {[%clk 0:00:55.3]} 29... h6 {[%clk 0:00:49.2]} 30. Rde1 {[%clk
0:00:47.2]} 30... Qf7 {[%clk 0:00:47.3]} 31. Bxg7+ {[%clk 0:00:35.8]} 31... Qxg7
{[%clk 0:00:44]} 32. Rxe7 {[%clk 0:00:33.9]} 32... Rxe7 {[%clk 0:00:41.2]} 33.
Qxe7 {[%clk 0:00:32.4]} 33... Qd4+ {[%clk 0:00:37.9]} 34. Kh1 {[%clk 0:00:32.1]}
34... Nd5 {[%clk 0:00:34]} 35. Qf8+ {[%clk 0:00:23.9]} 35... Kh7 {[%clk
0:00:33.6]} 36. Qf7+ {[%clk 0:00:24.2]} 36... Qg7 {[%clk 0:00:32]} 37. Qxd5
{[%clk 0:00:23.2]} 1-0

[Event "Early-Titled-Tuesday-Blitz-July-09-2024"]
[Site "Chess.com"]
[Date "2024.07.09"]
[Round "9"]
[White "Oleg_Papayan"]
[Black "Iball95"]
[Result "0-1"]
[WhiteElo "2611"]
[BlackElo "2915"]
[TimeControl "180+1"]
[EndTime "9:45:15 PDT"]
[Termination "Iball95 won on time"]

1. d4 {[%clk 0:02:54.9]} 1... d5 {[%clk 0:02:59.6]} 2. Nc3 {[%clk 0:02:54.4]}
2... Nf6 {[%clk 0:02:59.5]} 3. Bf4 {[%clk 0:02:55]} 3... c5 {[%clk 0:02:59.9]}
4. e4 {[%clk 0:02:55.1]} 4... Nxe4 {[%clk 0:03:00.3]} 5. Nxe4 {[%clk 0:02:55]}
5... dxe4 {[%clk 0:03:01.2]} 6. dxc5 {[%clk 0:02:55.9]} 6... Qa5+ {[%clk
0:03:01.5]} 7. c3 {[%clk 0:02:56.5]} 7... Qxc5 {[%clk 0:03:02.2]} 8. Qa4+ {[%clk
0:02:57.1]} 8... Nc6 {[%clk 0:03:02.7]} 9. Qxe4 {[%clk 0:02:57.3]} 9... g6
{[%clk 0:03:03.4]} 10. Nf3 {[%clk 0:02:57.7]} 10... Bg7 {[%clk 0:03:03.8]} 11.
Rd1 {[%clk 0:02:58.2]} 11... O-O {[%clk 0:03:03.7]} 12. Be3 {[%clk 0:02:56.7]}
12... Qa5 {[%clk 0:03:03.2]} 13. Bc4 {[%clk 0:02:56.9]} 13... Bf5 {[%clk
0:03:03.6]} 14. Qh4 {[%clk 0:02:57.2]} 14... Bf6 {[%clk 0:03:04.1]} 15. Ng5
{[%clk 0:02:56.9]} 15... h5 {[%clk 0:02:52.4]} 16. Rd5 {[%clk 0:02:56.8]} 16...
Qc7 {[%clk 0:02:13.4]} 17. Rxf5 {[%clk 0:02:56.2]} 17... gxf5 {[%clk 0:02:13.6]}
18. Qxh5 {[%clk 0:02:53.9]} 18... Bxg5 {[%clk 0:02:13.8]} 19. Qxg5+ {[%clk
0:02:50.6]} 19... Kh8 {[%clk 0:02:12.9]} 20. Qh6+ {[%clk 0:01:50.4]} 20... Kg8
{[%clk 0:02:11.3]} 21. Qg6+ {[%clk 0:01:51]} 21... Kh8 {[%clk 0:02:09.2]} 22.
Qh5+ {[%clk 0:01:51.2]} 22... Kg8 {[%clk 0:02:08.2]} 23. g4 {[%clk 0:01:43.4]}
23... f4 {[%clk 0:01:33.1]} 24. Qg5+ {[%clk 0:01:19.8]} 24... Kh8 {[%clk
0:01:32.6]} 25. Bxf4 {[%clk 0:01:14]} 25... Qd7 {[%clk 0:00:57.9]} 26. Qh6+
{[%clk 0:00:53.9]} 26... Kg8 {[%clk 0:00:57.6]} 27. Qg6+ {[%clk 0:00:29.8]}
27... Kh8 {[%clk 0:00:54.1]} 28. Bxf7 {[%clk 0:00:29.4]} 28... Rxf7 {[%clk
0:00:43.5]} 29. Qxf7 {[%clk 0:00:30.3]} 29... Qxg4 {[%clk 0:00:29.3]} 30. Qc4
{[%clk 0:00:04.4]} 30... Rd8 {[%clk 0:00:24.7]} 0-1